bitfinex-derivatives/quotes_ETHF0:USTF0_20260305
["timestamp","ask_amount","ask_price","bid_price","bid_amount"]
[1772675544191,0.68511351,2111.7,2110.2,0.68030702]
[1772675544386,0.68511351,2111.5,2110.3,0.68030702]
[1772675546286,0.68511351,2111.5,2110.5,0.68030702]
[1772675546889,0.68120045,2110.7,2110.0,0.71741607]
[1772675547092,0.6864434,2110.7,2110.0,0.00410945]
[1772675548885,0.6864434,2110.7,2110.0,0.71741607]
[1772675549090,0.00524295,2110.7,2110.0,0.71741607]
[1772675549792,0.63909956,2110.9,2110.0,0.71741607]
[1772675549988,0.68120045,2111.1,2110.2,0.71330662]
[1772675550193,0.68120045,2111.6,2110.2,0.71330662]
[1772675550492,0.68120045,2111.4,2110.2,0.71330662]
[1772675550890,0.68518376,2111.4,2110.2,0.71330662]
[1772675552093,0.68518376,2111.4,2110.4,0.71330662]
[1772675553895,0.00398331,2111.4,2110.8,0.71330662]
[1772675554095,0.68518376,2111.4,2110.5,0.71330662]
[1772675554289,0.68120045,2111.2,2110.1,0.71330662]
[1772675556693,0.68120045,2111.2,2110.2,0.71330662]
[1772675557097,0.68518376,2111.4,2110.6,0.71330662]
[1772675557396,0.68518376,2111.4,2110.5,0.23685]
[1772675557697,0.68518376,2111.4,2110.4,0.71330662]
[1772675558093,0.68120045,2111.2,2110.1,0.71330662]
[1772675559294,0.68120045,2110.7,2109.6,0.71330662]
[1772675559600,0.68120045,2110.5,2109.6,0.71330662]
[1772675560302,0.68120045,2110.5,2109.6,0.71798376]
[1772675560496,0.68120045,2110.5,2109.8,0.71330662]
[1772675560691,0.68120045,2110.5,2109.7,0.23694]
[1772675560999,3.10357781,2110.5,2109.6,0.00467714]
[1772675561298,0.68120045,2110.4,2109.6,0.00467714]
[1772675561700,0.68120045,2110.1,2109.1,0.71330662]
[1772675562802,0.68120045,2110.1,2109.1,0.71730482]
[1772675563297,0.68120045,2110.0,2109.2,0.71330662]
[1772675563496,3.86517967,2110.7,2109.4,0.71330662]
[1772675563497,0.68120045,2110.2,2109.4,0.71330662]
[1772675563898,3.86517967,2110.7,2109.6,0.71330662]
[1772675563899,0.68120045,2110.7,2109.6,0.71330662]
[1772675564099,0.68120045,2110.4,2109.3,0.71330662]
[1772675565303,0.68120045,2110.1,2109.1,0.0039982]
[1772675565898,0.68120045,2110.1,2109.1,0.71730482]
[1772675567105,6.28755703,2110.5,2109.3,0.71330662]
[1772675567106,0.68120045,2110.3,2109.3,0.71330662]
[1772675568303,0.68120045,2110.3,2109.5,0.71330662]
[1772675570898,0.65095572,2110.7,2109.7,0.64601727]
[1772675571097,6.69373622,2110.6,2109.7,0.64601727]
[1772675571300,0.65095572,2110.6,2109.7,0.64601727]
[1772675572209,0.65095572,2110.6,2109.9,0.64601727]
[1772675572605,0.65095572,2111.0,2109.9,0.64601727]
[1772675572909,0.65095572,2110.8,2109.9,0.64601727]
[1772675574305,0.65095572,2110.8,2110.1,0.64601727]
[1772675575108,0.65095572,2111.2,2110.3,0.64601727]
[1772675576806,0.65095572,2111.0,2110.1,0.64601727]
[1772675577112,0.65095572,2111.0,2109.8,0.64601727]
[1772675577909,0.65095572,2110.5,2109.3,0.64601727]
[1772675580408,0.65095572,2110.7,2109.7,0.64601727]
[1772675580813,0.65095572,2110.7,2109.9,0.64601727]
[1772675581110,0.65095572,2111.0,2110.3,0.64601727]
[1772675581515,0.65095572,2111.0,2109.9,6.95801727]
[1772675581813,0.65095572,2110.8,2109.9,6.95801727]
[1772675582011,0.65095572,2110.8,2109.9,0.64601727]
[1772675582217,0.65095572,2110.8,2109.7,0.23693]
[1772675582412,0.65095572,2110.6,2109.3,0.64601727]
[1772675583009,0.65095572,2110.4,2109.3,0.64601727]
[1772675583411,3.86517967,2110.8,2109.5,0.64601727]
[1772675583610,0.65095572,2110.6,2109.5,0.64601727]
[1772675583816,9.63864901,2111.1,2109.9,0.64601727]
[1772675583817,3.86517967,2110.9,2109.9,0.64601727]
[1772675584015,6.69163732,2110.8,2109.9,0.64601727]
[1772675584216,6.69163732,2110.7,2109.9,0.64601727]
[1772675584419,0.65095572,2110.5,2109.7,0.64601727]
[1772675585820,0.65095572,2110.8,2109.8,0.64601727]
[1772675586023,6.69602948,2110.7,2110.0,0.64601727]
[1772675586217,0.65095572,2110.7,2110.0,0.64601727]
[1772675587218,0.65095572,2111.1,2110.0,0.64601727]
[1772675587416,0.65095572,2110.9,2110.0,0.64601727]
[1772675588024,0.65095572,2110.9,2109.9,6.54991]
[1772675588224,0.65095572,2110.7,2110.0,0.64601727]
[1772675591025,0.65095572,2111.0,2110.0,0.64601727]
[1772675591226,6.69952933,2110.9,2110.0,0.64601727]
[1772675591427,0.65095572,2111.1,2110.2,0.64601727]
[1772675591628,0.65095572,2111.1,2110.4,0.64601727]
[1772675591926,0.65095572,2111.3,2110.4,0.64601727]
[1772675592125,6.05056821,2111.2,2110.4,0.64601727]
[1772675592325,0.65095572,2111.3,2110.6,0.64601727]
[1772675592526,0.65095572,2111.3,2110.6,0.65179075]
[1772675592725,0.00398331,2111.4,2110.6,0.65179075]
[1772675592922,0.00398331,2111.4,2110.8,0.64601727]
[1772675593524,0.00398331,2111.4,2110.6,0.00577348]
[1772675593525,0.65493903,2111.4,2110.6,0.00577348]
[1772675594524,0.65095572,2111.2,2110.3,0.64601727]
[1772675595024,0.65095572,2111.1,2109.8,0.64601727]
[1772675595228,6.64166109,2111.0,2109.8,0.64601727]
[1772675595428,0.65095572,2110.9,2109.8,0.64995313]
[1772675596126,0.65095572,2110.9,2110.0,0.64601727]
[1772675596929,0.65095572,2111.3,2110.2,0.64601727]
[1772675597131,5.99181417,2111.2,2110.2,0.64601727]
[1772675597430,0.65095572,2111.1,2110.3,0.88288727]
[1772675598231,0.65095572,2111.1,2110.3,0.64601727]
[1772675598430,0.65095572,2111.0,2109.9,0.64601727]
[1772675599833,0.65095572,2111.0,2110.0,0.2369]
[1772675600034,3.86916298,2111.4,2110.3,0.63885807]
[1772675600237,0.6381279,2111.2,2110.3,0.63885807]
[1772675600628,0.6381279,2111.0,2110.0,0.63885807]
[1772675600832,0.6381279,2110.8,2110.0,0.63885807]
[1772675602233,0.6381279,2110.8,2109.8,0.00393586]
[1772675602437,0.6381279,2110.8,2109.8,0.64279393]
[1772675605342,0.6381279,2110.8,2110.0,0.63885807]
[1772675605538,0.6381279,2110.6,2109.8,0.00393586]
[1772675605833,0.6381279,2110.8,2110.0,0.63885807]
[1772675607539,0.6381279,2110.8,2109.8,6.29093586]
[1772675607540,0.6381279,2110.8,2109.8,0.00393586]
[1772675607739,0.6381279,2110.8,2109.8,0.65198703]
[1772675610243,0.63418349,2111.0,2110.2,0.64805117]
[1772675610840,3.86916298,2111.4,2110.4,0.64805117]
[1772675611037,6.56575354,2111.3,2110.4,0.64805117]
[1772675611245,0.63418349,2111.1,2110.4,0.64805117]
[1772675612346,0.63418349,2111.3,2110.4,0.64805117]
[1772675614541,0.00398331,2111.4,2110.6,0.64805117]
[1772675614750,6.57486648,2111.4,2110.6,0.64805117]
[1772675615042,0.6381668,2111.4,2110.6,0.64805117]
[1772675616049,5.90838615,2111.3,2110.2,0.64805117]
[1772675616249,0.63418349,2111.2,2110.2,0.64805117]
[1772675616639,0.63418349,2111.2,2110.4,0.64805117]
[1772675616845,0.6381668,2111.4,2110.6,0.64805117]
[1772675617249,0.6381668,2111.4,2110.1,0.64805117]
[1772675617448,0.6381668,2111.4,2110.3,0.64805117]
[1772675618149,0.63418349,2111.2,2110.3,0.64805117]
[1772675619646,0.00398331,2111.4,2110.5,0.64805117]
[1772675619647,0.6381668,2111.4,2110.5,0.64805117]
[1772675620655,0.00398331,2111.4,2110.7,0.64805117]
[1772675622747,0.63418349,2111.8,2110.9,0.64805117]
[1772675623054,0.63418349,2111.8,2111.0,0.64805117]
[1772675623651,0.63979127,2111.8,2111.0,0.64805117]
[1772675623952,0.63418349,2112.4,2111.3,0.64805117]
[1772675624651,0.63418349,2112.4,2111.4,0.64805117]
[1772675624952,0.63974968,2112.4,2111.4,0.65393914]
[1772675627652,0.63974968,2112.4,2111.6,0.64805117]
[1772675627850,0.63974968,2112.4,2111.4,0.65393914]
[1772675628050,0.63974968,2112.4,2111.5,0.64805117]
[1772675628548,0.00556619,2112.4,2111.9,0.6454498]
[1772675628747,3.86517967,2113.3,2112.1,0.6454498]
[1772675628748,10.138,2113.3,2112.1,0.6454498]
[1772675628952,3.86517967,2113.4,2112.3,0.6454498]
[1772675628953,0.61330075,2113.4,2112.3,0.6454498]
[1772675629154,0.61330075,2113.4,2112.5,0.6454498]
[1772675629755,0.61811356,2113.4,2112.5,0.6454498]
[1772675630656,0.61811356,2113.4,2112.3,0.6454498]
[1772675630853,0.61330075,2113.3,2111.9,0.6454498]
[1772675631959,0.61330075,2113.3,2112.1,0.6454498]
[1772675632951,0.61330075,2113.3,2112.3,0.6454498]
[1772675633158,0.61330075,2113.3,2112.5,0.6454498]
[1772675634265,0.61330075,2113.3,2112.2,0.6454498]
[1772675636657,0.61330075,2113.3,2112.0,0.6454498]
[1772675636849,0.61330075,2113.3,2112.2,0.6454498]
[1772675641158,0.61330075,2113.3,2112.4,0.6454498]
[1772675641457,0.00481281,2113.4,2112.6,0.6454498]
[1772675641655,0.61330075,2113.7,2113.0,0.6454498]
[1772675641964,0.61330075,2114.3,2113.0,0.6454498]
[1772675642557,0.61330075,2114.3,2112.5,5.82096]
[1772675642558,0.61330075,2114.3,2112.5,0.6454498]
[1772675642753,2.42441479,2114.0,2112.8,0.6454498]
[1772675642954,0.61330075,2113.5,2112.5,0.00462261]
[1772675643657,0.61330075,2113.5,2112.0,0.6454498]
[1772675643960,0.61330075,2113.5,2111.4,0.23674]
[1772675643961,0.61330075,2113.1,2111.8,0.6454498]
[1772675644664,0.61330075,2113.1,2111.8,0.64964857]
[1772675645663,0.61330075,2113.0,2111.8,0.64964857]
[1772675647461,0.61330075,2113.0,2111.9,0.6454498]
[1772675648167,0.61330075,2113.5,2112.1,0.6454498]
[1772675648361,0.61330075,2113.3,2112.1,0.6454498]
[1772675648959,0.61330075,2113.3,2112.3,0.6454498]
[1772675650661,0.61330075,2113.3,2112.5,0.6454498]
[1772675650868,0.61330075,2113.8,2112.7,0.6454498]
[1772675651168,0.61330075,2113.6,2112.7,0.6454498]
[1772675651960,0.61330075,2113.8,2112.7,0.6454498]
[1772675653167,0.61330075,2113.7,2112.7,0.6454498]
[1772675653366,0.61330075,2113.9,2112.9,0.6454498]
[1772675653564,5.70079724,2113.8,2112.9,0.6454498]
[1772675654667,0.61330075,2113.7,2112.9,0.6454498]
[1772675655763,0.61330075,2113.9,2112.9,0.6454498]
[1772675655967,0.61330075,2113.9,2113.1,0.6454498]
[1772675656663,3.86943678,2114.3,2113.1,0.6454498]
[1772675656664,0.61330075,2114.1,2113.1,0.6454498]
[1772675658367,0.61755786,2114.3,2113.1,0.6454498]
[1772675658562,0.61755786,2114.3,2113.3,0.6454498]
[1772675658770,0.00425711,2114.3,2113.4,0.58576714]
[1772675659263,0.58175042,2114.3,2113.4,0.58576714]
[1772675659767,0.00425711,2114.3,2113.4,0.58576714]
[1772675660667,0.58175042,2114.3,2113.4,0.58576714]
[1772675660966,0.58175042,2114.3,2113.5,0.58576714]
[1772675662167,0.00425711,2114.3,2113.5,0.58576714]
[1772675662465,0.58175042,2114.3,2113.3,0.58978935]
[1772675665268,0.58175042,2114.3,2113.5,0.58576714]
[1772675666769,0.00425711,2114.3,2113.5,0.58576714]
[1772675667069,0.00425711,2114.3,2113.7,0.58633788]
[1772675668164,0.574215,2114.7,2113.7,0.58633788]
[1772675668869,0.574215,2114.7,2113.4,2.41736189]
[1772675668870,0.574215,2114.7,2113.9,0.58633788]
[1772675669070,0.57869984,2114.7,2113.9,0.58633788]
[1772675669566,0.00448484,2114.7,2114.1,0.58633788]
[1772675669765,0.574215,2115.1,2114.1,0.58633788]
[1772675670561,0.574215,2115.5,2114.1,0.58633788]
[1772675670767,0.574215,2115.3,2114.1,0.58633788]
[1772675670970,0.57919176,2115.5,2114.3,0.58633788]
[1772675671267,0.574215,2114.9,2113.8,0.58633788]
[1772675672671,0.574215,2114.9,2114.0,0.58633788]
[1772675676071,0.574215,2115.3,2114.2,0.58633788]
[1772675677375,0.574215,2115.3,2113.8,2.41736189]
[1772675677376,0.574215,2115.3,2114.4,0.58633788]
[1772675682376,0.57919176,2115.5,2114.6,0.58633788]
[1772675684284,0.574215,2115.3,2114.6,0.58633788]
[1772675684680,0.574215,2115.0,2114.1,0.58633788]
[1772675685477,0.574215,2115.2,2114.3,0.58633788]
[1772675686285,0.574215,2115.2,2114.5,0.58633788]
[1772675686679,0.57919176,2115.5,2114.5,0.58633788]
[1772675686882,5.68927254,2115.4,2114.7,0.58633788]
[1772675687079,0.57919176,2115.5,2114.7,0.58633788]
[1772675688282,0.574215,2115.3,2114.3,0.58633788]
[1772675689684,0.61247488,2115.1,2114.3,0.58633788]
[1772675690081,0.61247488,2115.0,2113.9,0.62739878]
[1772675690981,0.61247488,2114.1,2113.4,0.62739878]
[1772675691190,0.61247488,2113.9,2113.2,0.62739878]
[1772675691378,0.61671174,2113.9,2113.0,0.62739878]
[1772675692888,0.61247488,2113.8,2113.0,0.62739878]
[1772675693780,0.61247488,2113.8,2113.0,0.63231802]
[1772675693983,0.61247488,2113.5,2112.5,0.62739878]
[1772675695091,0.61247488,2113.5,2112.5,0.63075303]
[1772675695487,3.86517967,2113.8,2112.5,0.63075303]
[1772675695488,0.61247488,2113.2,2112.5,0.00335425]
[1772675699294,0.61247488,2113.2,2112.5,0.63075303]
[1772675699992,0.61247488,2113.2,2112.5,0.00335425]
[1772675700594,0.61247488,2113.2,2112.3,0.62739878]
[1772675700595,0.61247488,2112.6,2111.9,0.62739878]
[1772675700794,0.61247488,2112.3,2111.4,0.62739878]
[1772675700988,0.61247488,2112.5,2111.4,0.62739878]
[1772675701592,0.61823564,2112.5,2111.4,0.6307223]
[1772675701891,0.61247488,2112.4,2111.4,0.6307223]
[1772675702791,0.61247488,2112.1,2111.4,0.00332352]
[1772675703098,0.61247488,2112.4,2111.4,0.6307223]
[1772675708902,0.61247488,2112.4,2111.6,0.62739878]
[1772675709204,10.138,2113.1,2112.0,0.62739878]
[1772675709404,0.61247488,2113.2,2112.0,0.62739878]
[1772675709603,0.61247488,2113.2,2112.2,0.62739878]
[1772675710000,0.61247488,2113.2,2112.4,0.62739878]
[1772675710204,0.61610145,2113.2,2112.4,0.62739878]
[1772675710701,2.41736189,2112.6,2111.9,0.62739878]
[1772675710902,0.61247488,2112.7,2111.9,0.62739878]
[1772675711501,0.61247488,2113.1,2111.9,0.62739878]
[1772675711698,2.41736189,2112.9,2111.9,0.62739878]
[1772675711906,0.61247488,2112.8,2111.9,0.62739878]
[1772675720113,0.61636715,2112.5,2111.5,0.60179458]
[1772675720509,0.61636715,2112.2,2111.4,0.00332352]
[1772675721008,0.61636715,2111.9,2111.4,0.00332352]
[1772675721304,0.61636715,2112.2,2111.4,0.6051181]
[1772675722308,0.61636715,2112.0,2111.4,0.6051181]
[1772675722509,0.61636715,2111.9,2111.0,0.60179458]
[1772675723312,6.28853508,2112.2,2111.0,0.60179458]
[1772675723313,0.61636715,2111.7,2111.0,0.60179458]
[1772675723514,0.61991909,2111.7,2111.0,0.60537227]
[1772675727516,0.00355194,2111.7,2111.0,0.60537227]
[1772675727913,0.59327807,2112.1,2111.2,0.58721381]
[1772675728112,0.59327807,2112.3,2111.6,0.58721381]
[1772675728316,0.59327807,2112.5,2111.6,0.58721381]
[1772675728518,5.67674598,2112.4,2111.6,0.58721381]
[1772675728921,0.00430924,2112.4,2111.6,0.58721381]
[1772675733417,0.59327807,2112.7,2111.8,0.58721381]
[1772675733617,5.62787171,2112.6,2111.8,0.58721381]
[1772675734222,0.59327807,2112.7,2111.8,0.58721381]
[1772675734423,0.59939754,2112.7,2111.8,0.58721381]
[1772675735022,0.59327807,2112.5,2111.8,0.58721381]
[1772675735225,0.59327807,2112.5,2111.7,0.23671]
[1772675735226,0.59327807,2112.3,2111.3,0.58721381]
[1772675735721,10.07329914,2112.7,2111.3,0.58721381]
[1772675735722,0.59327807,2112.1,2111.3,0.58721381]
[1772675738024,0.59327807,2111.9,2111.3,0.58721381]
[1772675739019,0.59327807,2111.7,2111.0,0.00357769]
[1772675739324,0.59327807,2111.7,2110.7,0.58721381]
[1772675739824,0.59327807,2111.5,2110.7,0.58721381]
[1772675740019,0.59327807,2111.5,2110.3,0.23686]
[1772675740020,0.59327807,2111.5,2110.4,0.58721381]
[1772675740225,0.59327807,2111.3,2110.4,0.59217546]
[1772675741424,0.59327807,2111.3,2110.6,0.58721381]
[1772675742223,0.59327807,2111.3,2109.7,0.58721381]
[1772675742424,0.59327807,2110.8,2109.7,0.58721381]
[1772675742622,0.59327807,2110.6,2109.7,0.58721381]
[1772675743217,0.59931865,2110.6,2109.7,0.59176206]
[1772675747932,0.59931865,2110.6,2109.3,0.58721381]
[1772675747933,0.59327807,2110.5,2109.3,0.58721381]
[1772675749028,0.59327807,2110.5,2109.3,0.59060026]
[1772675749625,0.62283887,2110.2,2109.3,0.00338645]
[1772675749830,0.62283887,2110.2,2109.3,0.58500913]
[1772675753130,0.62283887,2110.4,2109.3,0.58500913]
[1772675753835,0.62283887,2110.4,2109.3,0.00338645]
[1772675754831,0.62283887,2110.4,2109.1,0.58162268]
[1772675754832,0.62283887,2109.4,2108.3,0.58162268]
[1772675755135,0.62283887,2109.9,2108.5,0.58162268]
[1772675755837,0.62283887,2109.9,2108.5,0.58600428]
[1772675757241,0.62283887,2109.9,2108.7,0.58162268]
[1772675758238,0.62283887,2109.9,2108.9,0.58162268]
[1772675758738,0.62283887,2110.5,2109.1,0.58162268]
[1772675760344,0.62283887,2110.3,2108.9,0.58162268]
[1772675760544,0.62283887,2110.3,2109.0,0.58162268]
[1772675761244,0.62283887,2110.3,2109.2,0.58162268]
[1772675761439,0.62283887,2110.3,2109.4,0.58162268]
[1772675761635,0.62283887,2110.3,2108.8,2.42335541]
[1772675761636,0.62283887,2110.3,2108.8,0.23703]
[1772675761834,0.62283887,2110.3,2109.3,0.58162268]
[1772675765243,0.62283887,2110.5,2109.5,0.58162268]
[1772675765845,0.62283887,2110.5,2109.7,0.58162268]
[1772675766551,0.62283887,2110.5,2109.4,0.58162268]
[1772675766940,0.62283887,2110.5,2109.2,0.58162268]
[1772675767248,0.62283887,2110.1,2109.0,0.58162268]
[1772675767449,0.62283887,2109.9,2109.0,0.58162268]
[1772675769243,0.62283887,2109.7,2109.0,0.58162268]
[1772675772152,5.6342106,2109.6,2109.0,0.58162268]
[1772675772650,6.25704947,2109.6,2109.0,0.58162268]
[1772675772844,0.62283887,2109.6,2109.0,0.58162268]
[1772675774049,0.62283887,2110.0,2109.0,0.58162268]
[1772675774247,0.62283887,2109.8,2109.0,0.58162268]
[1772675775147,0.62283887,2110.1,2109.1,0.58162268]
[1772675775452,0.62283887,2109.9,2109.1,0.58162268]
[1772675776255,0.62283887,2109.7,2108.6,0.58162268]
[1772675776445,0.62283887,2109.5,2108.6,0.58162268]
[1772675776651,0.62283887,2109.3,2107.5,0.23718]
[1772675776850,0.62283887,2108.8,2107.6,0.58162268]
[1772675777050,0.62283887,2108.6,2107.6,0.58162268]
[1772675777652,0.00447308,2108.6,2107.6,0.58521332]
[1772675778350,0.00447308,2108.6,2107.8,0.58162268]
[1772675779052,0.00447308,2108.6,2107.7,0.23716]
[1772675779053,0.57599732,2109.1,2108.0,0.59473306]
[1772675780157,0.58204598,2109.1,2108.0,0.59473306]
[1772675780757,0.58204598,2109.1,2108.2,0.59473306]
[1772675782355,0.00604866,2109.1,2108.2,0.59473306]
[1772675782561,0.00604866,2109.1,2108.4,0.59473306]
[1772675783558,0.58204598,2109.1,2107.9,0.59473306]
[1772675784055,0.58204598,2109.1,2108.0,0.23713]
[1772675784252,0.58204598,2109.1,2108.1,0.59473306]
[1772675784652,0.58204598,2109.1,2107.9,2.42864877]
[1772675784653,0.00604866,2109.1,2108.3,0.59473306]
[1772675785452,0.00604866,2109.1,2108.5,0.59473306]
[1772675787065,0.55665376,2109.5,2108.5,3.02338183]
[1772675787255,0.55665376,2109.5,2108.6,0.60564656]
[1772675787459,0.55665376,2109.7,2108.8,0.60564656]
[1772675787658,5.77301732,2110.0,2108.3,0.60564656]
[1772675787659,0.55665376,2109.5,2108.3,0.60564656]
[1772675788156,0.55665376,2109.5,2108.2,2.66574877]
[1772675788157,0.5602148,2109.5,2108.5,0.60564656]
[1772675789963,0.55665376,2109.3,2108.5,0.60564656]
[1772675790564,0.55665376,2109.3,2108.1,0.60564656]
[1772675790565,0.55665376,2109.1,2108.1,0.60564656]
[1772675794476,0.55665376,2108.6,2107.6,0.6092372]
[1772675795564,0.55665376,2108.6,2107.8,0.60564656]
[1772675796065,0.55665376,2109.0,2108.0,0.60564656]
[1772675796268,0.55665376,2109.0,2108.2,0.60564656]
[1772675797370,0.55665376,2109.2,2108.3,0.23709]
[1772675797666,0.55665376,2109.4,2108.5,0.23707]
[1772675797875,0.5602148,2109.5,2108.6,0.60564656]
[1772675798168,0.00356104,2109.5,2108.8,0.60564656]
[1772675798972,0.55665376,2109.9,2109.0,0.60564656]
[1772675800071,0.56060498,2109.9,2109.0,0.60564656]
[1772675800961,0.00395122,2109.9,2109.0,0.60564656]
[1772675801171,0.55665376,2110.5,2109.4,0.60564656]
[1772675801670,0.55665376,2110.5,2109.6,0.60564656]
[1772675802172,0.00530627,2110.5,2109.7,0.60564656]
[1772675802963,3.86561482,2111.3,2110.0,0.60564656]
[1772675802964,0.55665376,2110.9,2110.0,0.60564656]
[1772675803172,0.55665376,2110.9,2109.7,0.60564656]
[1772675803370,0.55665376,2110.8,2109.7,0.60564656]
[1772675803966,0.561214,2110.8,2109.7,0.60564656]
[1772675804672,0.561214,2110.8,2109.9,0.60564656]
[1772675804971,0.00456024,2110.8,2110.0,0.60564656]
[1772675805868,0.00456024,2110.8,2110.2,0.60564656]
[1772675806168,6.203,2111.8,2110.4,0.60564656]
[1772675806169,0.55665376,2111.2,2110.4,0.60564656]
[1772675806362,0.55665376,2111.2,2110.2,0.60564656]
[1772675806566,0.55665376,2111.1,2110.0,0.60564656]
[1772675807173,0.56144727,2111.1,2110.0,0.60564656]
[1772675807369,0.55665376,2110.5,2109.6,0.00556299]
[1772675808165,0.55665376,2110.5,2109.6,0.61120955]
[1772675808368,0.55665376,2110.7,2109.7,0.60564656]
[1772675812771,0.56720552,2111.0,2109.9,0.56746969]
[1772675813173,0.00479351,2111.1,2110.1,0.56746969]
[1772675813566,0.57199903,2111.1,2110.1,0.56746969]
[1772675813969,0.57199903,2111.1,2109.6,0.00556299]
[1772675814174,0.57199903,2111.1,2109.9,0.56746969]
[1772675814670,0.57199903,2111.1,2110.0,0.56746969]
[1772675815069,0.57199903,2111.1,2110.2,0.56746969]
[1772675817170,0.57199903,2111.1,2110.5,0.56746969]
[1772675817375,0.57199903,2111.1,2110.0,0.56746969]
[1772675818071,0.56720552,2110.5,2109.6,0.57303268]
[1772675818972,0.56720552,2111.0,2109.6,0.57303268]
[1772675819571,0.56720552,2110.8,2109.6,0.57303268]
[1772675820377,0.00479351,2111.1,2109.6,0.57303268]
[1772675820378,0.56720552,2110.5,2109.6,0.57303268]
[1772675821373,0.56720552,2110.5,2109.6,0.00556299]
[1772675821673,0.56720552,2110.5,2109.6,0.57303268]
[1772675823277,0.56720552,2110.5,2109.6,0.00556299]
[1772675823482,0.56720552,2109.9,2108.8,0.56746969]
[1772675823679,0.56720552,2109.6,2108.8,0.56746969]
[1772675823980,0.56720552,2109.6,2108.3,0.56746969]
[1772675824572,0.57296411,2109.6,2108.3,0.57205511]
[1772675826583,0.57296411,2109.6,2108.5,0.56746969]
[1772675826785,0.57296411,2109.6,2108.6,0.56746969]
[1772675826982,0.00575859,2109.6,2108.6,0.56746969]
[1772675827187,0.00575859,2109.6,2108.8,0.56746969]
[1772675827984,0.00575859,2109.6,2108.8,2.99611846]
[1772675828184,3.86561482,2110.4,2109.2,0.56746969]
[1772675828384,13.45202779,2110.7,2109.2,0.56746969]
[1772675828385,0.56720552,2110.7,2109.6,0.56746969]
[1772675828579,0.56720552,2110.7,2109.4,2.42864877]
[1772675828580,0.56720552,2110.7,2109.8,0.56746969]
[1772675828887,3.86561482,2111.1,2109.8,0.56746969]
[1772675828888,0.56720552,2111.1,2109.8,0.56746969]
[1772675829088,0.56720552,2110.9,2109.8,0.56746969]
[1772675829287,0.56720552,2110.9,2109.8,0.57278861]
[1772675833192,0.56720552,2110.8,2109.8,0.57278861]
[1772675834496,0.56720552,2111.0,2109.8,0.57278861]
[1772675836094,0.56720552,2111.0,2110.1,0.56746969]
[1772675837892,0.00407932,2111.1,2110.1,0.56746969]
[1772675838095,0.57128484,2111.1,2110.1,0.56746969]
[1772675839099,0.57128484,2111.1,2109.9,0.60420703]
[1772675839598,0.57128484,2111.1,2110.1,0.60420703]
[1772675842598,0.57128484,2111.1,2110.3,0.60420703]
[1772675843497,0.00407932,2111.1,2110.3,0.60420703]
[1772675843695,0.58565979,2111.5,2110.5,0.60420703]
[1772675843898,0.58565979,2111.5,2110.6,0.60420703]
[1772675844298,3.86561482,2112.0,2110.6,0.60420703]
[1772675844299,0.58565979,2111.9,2110.6,0.60420703]
[1772675844704,0.59075593,2111.9,2110.6,0.60420703]
[1772675845408,0.59075593,2111.9,2110.8,0.60420703]
[1772675847100,0.59075593,2111.9,2110.4,0.56763583]
[1772675847510,0.59075593,2111.9,2110.6,0.56763583]
[1772675848500,0.59075593,2111.9,2110.7,0.23682]
[1772675848709,0.00509614,2111.9,2111.4,0.56763583]
[1772675848901,0.57818576,2111.9,2111.4,0.57121882]
[1772675849501,0.00509614,2111.9,2111.4,0.57121882]
[1772675849707,0.57308962,2112.7,2111.4,0.57121882]
[1772675850701,0.57781303,2112.7,2111.4,0.57121882]
[1772675851104,0.57781303,2112.7,2111.6,0.56763583]
[1772675851706,3.86561482,2113.3,2112.0,0.56763583]
[1772675851707,0.57308962,2113.3,2112.0,0.56763583]
[1772675852010,0.57308962,2113.6,2112.2,0.56763583]
[1772675852804,0.57754222,2113.6,2112.2,0.56763583]
[1772675853004,0.0044526,2113.6,2112.4,2.99113191]
[1772675853211,0.0044526,2113.6,2112.5,0.56763583]
[1772675853403,0.0044526,2113.6,2112.6,0.56763583]
[1772675854107,0.57754222,2113.6,2112.8,0.56763583]
[1772675855011,0.57754222,2113.6,2112.4,0.56763583]
[1772675858807,0.0044526,2113.6,2112.8,0.56763583]
[1772675859013,0.57308962,2114.0,2113.0,0.56763583]
[1772675860015,0.57761207,2114.0,2113.0,0.571642]
[1772675860610,0.57761207,2114.0,2113.0,0.00400617]
[1772675860912,0.57761207,2114.0,2113.0,0.571642]
[1772675861405,0.57761207,2114.0,2113.0,0.00400617]
[1772675862007,0.57761207,2114.0,2112.6,0.56763583]
[1772675863012,0.57308962,2113.6,2112.6,0.00345528]
[1772675863915,0.57308962,2113.6,2112.6,0.57109111]
[1772675864519,0.57308962,2113.6,2112.6,0.00345528]
[1772675865618,0.57308962,2113.6,2112.6,0.57109111]
[1772675866919,0.57308962,2113.6,2112.2,0.56763583]
[1772675867216,0.57308962,2113.3,2111.8,0.56763583]
[1772675867920,0.57308962,2113.3,2111.8,0.57116093]
[1772675869614,0.57308962,2113.3,2112.0,0.5922611]
[1772675875327,0.57308962,2113.3,2112.2,0.5922611]
[1772675878336,0.58168704,2113.1,2112.2,0.5922611]
[1772675880237,0.58168704,2113.3,2112.2,0.5922611]
[1772675880433,6.22755272,2113.2,2112.2,0.5922611]
[1772675880635,0.58168704,2113.2,2112.2,0.5922611]
[1772675881032,0.58168704,2113.0,2112.2,0.5922611]
[1772675881633,0.58168704,2113.0,2112.0,0.23668]
[1772675881837,0.58168704,2113.0,2111.9,0.5922611]
[1772675882240,4.44730186,2113.6,2112.8,0.5922611]
[1772675882443,0.58168704,2113.8,2113.0,0.5922611]
[1772675882832,0.58168704,2113.8,2112.4,0.23663]
[1772675883035,0.58168704,2113.6,2112.5,0.5922611]
[1772675886137,0.58168704,2113.8,2112.9,0.5922611]
[1772675886934,0.00452245,2114.0,2113.1,0.5922611]
[1772675887535,0.58620949,2114.0,2113.3,0.5922611]
[1772675887742,0.58620949,2114.0,2113.3,0.00519753]
[1772675888135,0.00452245,2114.0,2113.3,0.59745863]
[1772675888541,0.58620949,2114.0,2113.3,0.59745863]
[1772675889245,0.00452245,2114.0,2113.3,0.59745863]
[1772675890447,0.58620949,2114.0,2113.3,0.59745863]
[1772675892848,0.00452245,2114.0,2113.3,0.59745863]
[1772675893441,0.00452245,2114.0,2113.3,0.83398863]
[1772675893746,0.00452245,2114.0,2113.4,0.5922611]
[1772675895547,0.58620949,2114.0,2113.4,0.5922611]
[1772675896950,0.00452245,2114.0,2113.4,0.5922611]
[1772675897348,0.58168704,2114.4,2113.4,0.5922611]
[1772675898446,0.58549151,2114.4,2113.4,0.5922611]
[1772675898951,0.00380447,2114.4,2113.6,0.59434936]
[1772675899347,0.00380447,2114.4,2113.8,0.59434936]
[1772675900055,0.00380447,2114.4,2113.4,0.59434936]
[1772675900056,0.56174258,2114.4,2113.4,0.59434936]
[1772675901153,0.56174258,2114.4,2113.3,0.00519753]
[1772675901350,0.55793811,2114.2,2113.3,0.00519753]
[1772675904050,0.55793811,2114.2,2112.7,6.43659]
[1772675904253,0.55793811,2114.0,2112.8,0.59434936]
[1772675904563,0.55793811,2113.8,2112.4,0.59434936]
[1772675905255,0.55793811,2113.8,2112.4,0.59888181]
[1772675908360,0.57790125,2113.6,2112.4,0.59888181]
[1772675910862,0.57790125,2113.6,2112.7,0.57247679]